[Event "15th Chennai GM Open 2025"]
[Site "Chennai"]
[Date "2025.01.03"]
[Round "3.13"]
[White "Nithin Babu"]
[Black "Mayank Chakraborty"]
[Result "0-1"]
[ECO "E69"]
[WhiteElo "2168"]
[BlackElo "2457"]
[Annotator "TA"]
[PlyCount "102"]
[EventDate "2025.01.02"]
[EventType "swiss"]
[EventCountry "IND"]
[SourceTitle "playchess.com"]
[Source "ChessBase"]
[SourceQuality "1"]
[TimeControl "5400+30"]

{[%evp 18,102,66,59,51,51,76,13,39,19,27,11,29,0,50,13,23,12,226,-57,-52,-95,-89,-101,-102,-91,-98,-117,-113,-109,-122,-121,-89,-82,-87,-74,-56,-66,-25,-40,-36,-57,0,-45,0,0,-10,-150,0,-66,0,-62,-51,-127,-139,-127,-142,-137,-133,-145,-133,-141,-124,-472,-489,-534,-521,-589,-553,-521,-517,-430,-422,-651,-622,-5506,-5506,-29993,-29992,-29992,-29990,-29990,-29991,-29995,-29996,-29998,-29999]} 1. c4 {[%emt 0:00:15]} Nf6 {[%emt 0:00:09]} 2. g3 {[%emt 0:00:22]} g6 {[%emt 0:00:04]} 3. Bg2 {[%emt 0:00:05]} Bg7 {[%emt 0:00:03]} 4. Nc3 {[%emt 0:00:07]} O-O {[%emt 0:00:05]} 5. d4 {[%emt 0:00:09]} d6 {[%emt 0:00:08]} 6. h3 {[%emt 0:00:42]} c6 {[%emt 0:01:46]} 7. e4 {[%emt 0:02:18]} e5 {[%emt 0:04:03]} 8. Nf3 {[%emt 0:03:08]} Nbd7 {[%emt 0:02:14]} 9. O-O {[%emt 0:02:34]} a6 {[%emt 0:03:54]} 10. Be3 {[%emt 0:08:20]} Qe7 {[%emt 0:06:10]} 11. Qc2 {[%emt 0:16:48]} b5 {[%emt 0:10:28]} 12. d5 {[%emt 0:16:18]} (12. c5 $16) 12... b4 {[%emt 0:03:03] The position is equal.} 13. dxc6 {[%emt 0:05:05]} (13. Na4 {simplifies} Bb7 14. Nd2 a5 15. a3) 13... bxc3 {[%emt 0:00:19]} 14. cxd7 {[%emt 0:00:05]} Bb7 {[%emt 0:01:51]} 15. Qxc3 {[%emt 0:02:55]} (15. bxc3 Bxe4 16. Qd2 Rad8 $15 (16... Qxd7 17. Nxe5 Qf5 18. Ng4 $11) (16... Nxd7 17. Rad1 $16)) 15... Bxe4 {[%emt 0:02:33]} ({Better is} 15... Nxe4 $11 16. Qa5 Qxd7) 16. Rfd1 {[%emt 0:05:37] Black should prevent c5.} Rfd8 {[%emt 0:13:50]} (16... Qxd7 {simplifies} 17. c5 Qb7 18. Qb3 dxc5 19. Qxb7 Bxb7 20. Rac1 e4) 17. c5 {[%emt 0:03:54]} Nd5 $2 {[%emt 0:04:33]} (17... Rxd7 $11 {and Black has nothing to worry.} 18. cxd6 Rxd6) 18. Qc4 $2 {[%emt 0:09:54]} ({Only move:} 18. Qe1 $1 $18 {Bg5 would now be deadly.} Nxe3 19. Qxe3) 18... Nxe3 $15 {[%emt 0:00:12]} 19. fxe3 {[%emt 0:00:56]} d5 {[%emt 0:00:15]} 20. Rxd5 {[%emt 0:00:26]} Bxd5 {[%emt 0:00:05]} 21. Qxd5 {[%emt 0:00:02] [#]} e4 $1 {[%emt 0:02:21]} (21... Rxd7 $2 22. Qxa8+ Rd8 23. Qe4 $18 (23. Qxa6 e4 $18)) (21... Qxd7 $6 22. Qxd7 Rxd7 23. Nxe5 Bxe5 24. Bxa8 $11) 22. Nd4 {[%emt 0:01:59]} Qxd7 {[%emt 0:02:47]} 23. Qxe4 {[%emt 0:07:20]} Rac8 {[%emt 0:04:32]} 24. c6 {[%emt 0:06:48]} Qd6 {[%emt 0:05:23][%mdl 1024] Black has strong compensation.} 25. Kh2 {[%emt 0:00:21]} Re8 {[%emt 0:02:29]} 26. Qf3 {[%emt 0:01:03]} h5 {[%emt 0:01:52][%cal Oh5h4]} (26... Bxd4 27. Rd1 $15) 27. h4 {[%emt 0:01:41]} Rc7 {[%emt 0:03:35][%cal Oc7e7]} (27... Bxd4 $6 28. Rd1 $16) 28. Rf1 {[%emt 0:00:56]} Rce7 {[%emt 0:01:54]} 29. b3 {[%emt 0:03:21]} Kh8 {[%emt 0:03:47]} (29... Bxd4 $15 30. exd4 Qxd4) 30. Nc2 {[%emt 0:00:58]} f5 {[%emt 0:06:20]} 31. Qd5 {[%emt 0:00:45]} Qc7 {[%emt 0:02:03]} 32. b4 {[%emt 0:00:12] [#]} (32. Rd1 $11 {remains equal.}) 32... Bf6 {[%emt 0:02:10]} ({Black should try} 32... Rd8 $1 $17 {[%cal Rd8d5]} 33. Qc4 Be5) 33. Kh3 {[%emt 0:00:28]} (33. Rd1 $11) 33... Rd8 {[%emt 0:00:26]} (33... Be5 $15 34. Qf3 Qc8) 34. Qf3 {[%emt 0:00:34]} (34. Qc4 $11) 34... Re4 $36 {[%emt 0:01:54][%cal Of6e5][%mdl 2048] Black has some pressure. Black is much more active.} 35. Qe2 {[%emt 0:01:03] White is now going downhill.} (35. Nd4 $1 $15) 35... Rg4 $17 {[%emt 0:02:50][%csl Gg4][%cal Rc7g3] The board is on fire.} 36. Rf4 {[%emt 0:00:01]} g5 {[%emt 0:01:08]} 37. hxg5 {[%emt 0:00:40]} Bxg5 {[%emt 0:02:07]} 38. Rxg4 {[%emt 0:00:38]} hxg4+ {[%emt 0:01:03]} 39. Kh2 {[%emt 0:00:01][%cal Oc2d4]} Kg7 {[%emt 0:00:22]} 40. Nd4 $2 {[%emt 0:00:15][%mdl 8192]} (40. a4 $17) 40... Qe5 $19 {[%emt 0:01:18] And now ...Rh8+ would win.} 41. Qf2 {[%emt 0:01:07]} Kg6 {[%emt 0:00:29] ( -> ...Rh8+)} (41... Bxe3 $2 {perishes.} 42. Nxf5+ Kg8 43. Nxe3 $18 (43. Qxe3 Qxf5 44. c7 Qh7+ 45. Kg1 Qxc7 $11)) 42. Nc2 {[%emt 0:00:46]} Qh8+ {[%emt 0:00:37]} 43. Kg1 {[%emt 0:00:05]} Rd1+ {[%emt 0:00:14]} 44. Bf1 {[%emt 0:00:22][%cal Oe3e4]} Qc3 {[%emt 0:00:40][%cal Od1d2]} 45. e4 {[%emt 0:01:00]} (45. c7 $142 Qxc7 46. e4) 45... fxe4 {[%emt 0:00:22][%cal Od1d2] Threatens to win with ...Rd2!} ({Inferior is} 45... Qxc6 46. Qxf5+ Kh6 47. Qf8+ Kh5 48. Qh8+ Bh6 (48... Qh6 49. Qe8+ Qg6 50. Qh8+ Bh6 51. Qe5+ Qg5 52. Qe8+ Qg6 53. Qe5+ Qg5 54. Qe8+ Qg6 55. Qe5+ $11) 49. Qe5+ Bg5 50. Qh8+ Kg6 (50... Qh6 51. Qe8+ Qg6 52. Qh8+ Qh6 53. Qe8+ Qg6 54. Qh8+ Qh6 $11) 51. Qg8+ Kf6 52. Qf8+ Kg6 53. Qg8+ Kh6 54. Qh8+ Kg6 55. Qg8+ $11) 46. Qe2 {[%emt 0:00:30]} Qxg3+ {[%emt 0:00:09]} 47. Kh1 {[%emt 0:00:02]} Qf3+ {[%emt 0:00:28] Black mates.} 48. Qxf3 {[%emt 0:00:10]} gxf3 {[%emt 0:00:08]} 49. Kg1 {[%emt 0:01:19]} e3 {[%emt 0:00:07]} 50. c7 {[%emt 0:00:18]} e2 {[%emt 0:00:03]} 51. c8=Q {[%emt 0:00:38]} exf1=Q+ {[%emt 0:00:07] Weighted Error Value: White=0.67/Black=0.26 (precise) .  Loses game:     	White=1     	Black=1      Missed win:     	White=1     	---        Mistake:       	White=6     	Black=4      Inaccurate:     	White=5     	Black=3      OK:         	White=6     	Black=12     Best:        	White=6     	Black=3      Strong:       	---       	Black=1} 0-1

[Event "15th Chennai GM Open 2025"]
[Site "Chennai"]
[Date "2025.01.03"]
[Round "3.14"]
[White "Priyanka, K."]
[Black "Rios Gomez, Cristhian Camilo"]
[Result "0-1"]
[ECO "B48"]
[WhiteElo "2144"]
[BlackElo "2435"]
[Annotator "TA"]
[PlyCount "83"]
[EventDate "2025.01.02"]
[EventType "swiss"]
[EventCountry "IND"]
[SourceTitle "playchess.com"]
[Source "ChessBase"]
[SourceQuality "1"]
[TimeControl "5400+30"]

{[%evp 13,83,20,21,21,16,18,20,24,29,24,9,0,43,-45,39,28,41,36,31,11,19,-81,-91,-96,-90,-77,-86,-82,-74,-78,-82,-108,-103,-98,-98,-131,-132,-125,-127,-131,-125,-137,-116,-165,-165,-273,-264,-370,-358,-330,-370,-348,-339,-428,-353,-437,-440,-470,-400,-667,-608,-782,-757,-1500,-1540,-1229,-552,-2444,-1847,-29982,-29983,-29989]} 1. e4 {[%emt 0:00:15]} c5 {[%emt 0:02:42]} 2. Nf3 {[%emt 0:00:08]} Nc6 {[%emt 0:00:27]} 3. d4 {[%emt 0:00:09]} cxd4 {[%emt 0:00:10]} 4. Nxd4 {[%emt 0:00:07]} e6 {[%emt 0:00:07]} 5. Nc3 {[%emt 0:00:40]} Qc7 {[%emt 0:00:58]} 6. Be3 {[%emt 0:00:43]} a6 {[%emt 0:01:15]} 7. Qd2 {[%emt 0:05:02]} Nf6 {[%emt 0:01:12]} 8. f4 {[%emt 0:00:27]} Bb4 {[%emt 0:02:16]} 9. Bd3 {[%emt 0:00:13]} b5 {[%emt 0:01:19]} 10. a3 {[%emt 0:00:15] The position is equal.} Be7 {[%emt 0:00:12]} 11. e5 {[%emt 0:14:01]} Ng4 {[%emt 0:01:40]} 12. Bg1 {[%emt 0:01:07]} Bb7 {[%emt 0:00:38][%cal Oc6e5]} 13. Ne4 {[%emt 0:11:02]} (13. Be4 $14) 13... f6 {[%emt 0:01:00]} (13... f5 $1 $15 14. exf6 Nxf6) 14. Nxc6 {[%emt 0:11:55]} Bxc6 {[%emt 0:12:56]} 15. h3 {[%emt 0:02:24]} Nxe5 {[%emt 0:03:37]} 16. fxe5 {[%emt 0:04:02]} Qxe5 {[%emt 0:00:10] [#]} 17. O-O-O {[%emt 0:12:39]} Bxe4 $17 {[%emt 0:02:48] White is now going downhill.} 18. Bh2 {[%emt 0:00:25]} Qd5 {[%emt 0:00:07]} 19. Bxe4 {[%emt 0:00:13]} Qxe4 {[%emt 0:00:08]} 20. Qxd7+ {[%emt 0:00:10]} Kf7 {[%emt 0:00:17][%cal Oa8c8]} 21. Rhe1 {[%emt 0:02:05]} Qc4 $40 {[%emt 0:00:29][%mdl 128] Black is out for blood.} 22. Bd6 {[%emt 0:24:18]} Rhe8 {[%emt 0:00:11]} 23. b3 {[%emt 0:00:19]} Qc8 {[%emt 0:00:18]} 24. Bxe7 {[%emt 0:00:13] [#] Threatens to win with Bb4+.} Qxd7 {[%emt 0:01:03]} 25. Rxd7 {[%emt 0:00:07]} Rxe7 {[%emt 0:00:07][%mdl 4096] Endgame. KRR-KRR} 26. Rd6 {[%emt 0:00:18]} e5 {[%emt 0:00:08]} 27. g4 {[%emt 0:02:56]} Raa7 {[%emt 0:02:35]} 28. Kb2 {[%emt 0:01:07]} (28. Red1 $17) 28... Re6 $19 {[%emt 0:01:05]} 29. Rxe6 {[%emt 0:04:34]} (29. Rd3 $142) 29... Kxe6 {[%emt 0:00:07] KR-KR} 30. c4 {[%emt 0:00:08]} (30. a4 {was worth a try.}) 30... bxc4 {[%emt 0:00:46]} 31. bxc4 {[%emt 0:00:06]} g6 {[%emt 0:00:06]} 32. Kc3 {[%emt 0:01:00]} f5 {[%emt 0:00:07]} 33. Rd1 {[%emt 0:00:48]} e4 {[%emt 0:00:20]} 34. gxf5+ {[%emt 0:01:58]} gxf5 {[%emt 0:00:08]} 35. c5 {[%emt 0:01:26]} Rd7 {[%emt 0:00:28]} 36. Rc1 {[%emt 0:00:19]} (36. Rg1 $142) 36... Kd5 {[%emt 0:01:12]} 37. Rf1 {[%emt 0:00:38]} Rf7 {[%emt 0:00:09]} ({Stronger than} 37... Kxc5 38. Rxf5+ Rd5 39. Rf4 $11) 38. Kb4 {[%emt 0:00:09]} f4 {[%emt 0:00:11] ...e3 would now be deadly.} 39. Rd1+ {[%emt 0:00:19]} Kc6 {[%emt 0:02:59] And now ...e3 would win.} 40. Kc4 {[%emt 0:01:01]} f3 {[%emt 0:01:06] Strongly threatening ...e3.} 41. Rf1 {[%emt 0:00:41]} e3 {[%emt 0:00:38]} 42. Kd4 {[%emt 0:00:21] Weighted Error Value: White=0.84/Black=0.23 (precise) .  Mistake:       	White=6     	Black=1      Inaccurate:     	White=3     	---        OK:         	White=8     	Black=16     Best:        	White=1     	Black=3} 0-1

[Event "15th Chennai GM Open 2025"]
[Site "Chennai"]
[Date "2025.01.03"]
[Round "3.15"]
[White "Sanket Chakravarty"]
[Black "Gawai Siddhant"]
[Result "1-0"]
[ECO "E14"]
[WhiteElo "2374"]
[BlackElo "2154"]
[Annotator "TA"]
[PlyCount "139"]
[EventDate "2025.01.02"]
[EventType "swiss"]
[EventCountry "IND"]
[SourceTitle "playchess.com"]
[Source "ChessBase"]
[SourceQuality "1"]
[TimeControl "5400+30"]

{[%evp 21,139,3,0,0,1,-2,-6,-49,-48,-66,-55,-49,-35,-63,-62,-72,0,0,13,18,79,72,68,72,77,68,99,100,99,100,100,100,92,99,106,106,183,187,208,211,202,197,220,206,235,219,208,176,213,170,161,158,826,826,703,833,837,823,797,775,692,0,502,0,683,692,667,660,6103,5293,12659,6135,6135,5625,29956,29963,29965,29970,29969,29971,29966,29970,29971,29972,29969,29973,29973,29970,29973,29975,29974,29976,29976,29977,29977,29978,29979,29976,29980,29981,29981,29982,29982,29983,29985,29986,29986,29981,29981,29982,29982,29983,29993,29994,29994,29995,29995,29994,29996,29997]} 1. d4 {[%emt 0:21:56]} Nf6 {[%emt 0:00:05]} 2. Nf3 {[%emt 0:00:07]} e6 {[%emt 0:00:05]} 3. e3 {[%emt 0:00:10]} b6 {[%emt 0:00:11]} 4. Bd3 {[%emt 0:00:15]} Bb7 {[%emt 0:00:06]} 5. O-O {[%emt 0:00:33]} Be7 {[%emt 0:00:35]} 6. b3 {[%emt 0:01:10]} O-O {[%emt 0:00:15]} 7. Bb2 {[%emt 0:00:46]} c5 {[%emt 0:00:13]} 8. Nbd2 {[%emt 0:01:40]} d6 {[%emt 0:00:37]} 9. c4 {[%emt 0:01:39]} Nbd7 {[%emt 0:02:30]} 10. Rc1 {[%emt 0:01:03]} Re8 {[%emt 0:02:41]} 11. Re1 {[%emt 0:00:58]} Bf8 {[%emt 0:00:52]} 12. a3 {[%emt 0:03:44]} Rc8 {[%emt 0:01:35]} 13. b4 {[%emt 0:01:08]} e5 {[%emt 0:11:45]} 14. Bb1 {[%emt 0:03:25]} e4 {[%emt 0:06:51]} 15. Ng5 {[%emt 0:00:46]} d5 {[%emt 0:01:10]} 16. dxc5 {[%emt 0:05:39]} bxc5 {[%emt 0:00:56]} 17. cxd5 {[%emt 0:15:07]} Bxd5 {[%emt 0:02:08]} 18. bxc5 {[%emt 0:02:39]} Rxc5 {[%emt 0:10:30]} ({Black should try} 18... h6 $1 $17 {[%cal Rh6g5]} 19. Nh3 g5 (19... Rxc5 20. Rxc5 Nxc5 21. Nf4 $11) (19... Nxc5 20. Nf4 $11)) 19. Rxc5 {[%emt 0:10:29]} Bxc5 {[%emt 0:02:20]} 20. Qa4 {[%emt 0:08:23]} Qe7 {[%emt 0:12:14]} (20... Qa8 $11) 21. Ndxe4 {[%emt 0:06:01]} Nxe4 {[%emt 0:05:07]} 22. Nxe4 {[%emt 0:00:07]} Bxe4 {[%emt 0:03:54]} 23. Bxe4 {[%emt 0:00:02]} Nb6 {[%emt 0:01:37]} 24. Qc2 {[%emt 0:04:20]} Qxe4 {[%emt 0:00:54]} 25. Qxc5 {[%emt 0:00:09]} Na4 {[%emt 0:00:05]} 26. Qd4 {[%emt 0:00:30]} (26. Qxa7 $2 {too greedy.} Nxb2 27. Qa6 Nc4 $19) 26... Nxb2 {[%emt 0:00:04]} 27. Qxb2 {[%emt 0:00:38]} h6 {[%emt 0:01:06]} 28. h3 {[%emt 0:00:03]} Re6 {[%emt 0:01:02]} (28... Qe5 $16 29. Rb1 Qxb2 30. Rxb2 Re5 31. Rb8+ Kh7) 29. Qb8+ $18 {[%emt 0:02:05]} Kh7 {[%emt 0:00:01]} 30. Qxa7 {[%emt 0:01:19]} Rg6 {[%emt 0:00:08]} 31. g3 $1 {[%emt 0:00:05]} (31. Qxf7 $2 Qxg2#) 31... Qf3 {[%emt 0:01:15]} 32. Qc7 {[%emt 0:00:33]} Qf5 {[%emt 0:03:59]} 33. e4 {[%emt 0:01:59]} Qe6 {[%emt 0:00:39]} 34. Kg2 {[%emt 0:00:23]} Rf6 {[%emt 0:00:36]} 35. Re2 {[%emt 0:00:38]} Qb3 {[%emt 0:01:13] [#]} 36. Qc2 $1 {[%emt 0:00:18]} Qxa3 $2 {[%emt 0:01:40]} (36... Qxc2 $16 37. Rxc2 Ra6) 37. e5+ $18 {[%emt 0:00:39]} Rg6 {[%emt 0:00:03]} 38. e6 {[%emt 0:00:44]} Qe7 {[%emt 0:00:16]} 39. h4 {[%emt 0:00:48]} Kh8 {[%emt 0:02:01]} 40. Qc8+ {[%emt 0:00:41]} Kh7 {[%emt 0:00:15]} 41. Qc2 {[%emt 0:00:02]} (41. Qd7 Qxd7 42. exd7 Rd6 $11) 41... Kh8 $1 {[%emt 0:00:08]} 42. Qc8+ {[%emt 0:00:16]} Kh7 {[%emt 0:00:07] [#]} 43. exf7 $1 {[%emt 0:00:47]} ({Worse is} 43. Qd7 Qxd7 44. exd7 Rd6 $11) 43... Qxf7 {[%emt 0:00:06]} 44. Re8 {[%emt 0:00:07]} Qd5+ {[%emt 0:01:49]} 45. Kh2 {[%emt 0:01:00]} Rf6 {[%emt 0:08:55]} 46. Rh8+ {[%emt 0:00:05]} Kg6 {[%emt 0:00:03]} 47. Qe8+ {[%emt 0:00:09]} Rf7 {[%emt 0:00:47]} 48. Rf8 {[%emt 0:00:05]} Kf6 {[%emt 0:00:54]} 49. Rxf7+ {[%emt 0:00:15]} Qxf7 {[%emt 0:00:05]} 50. Qxf7+ {[%emt 0:00:06]} Kxf7 {[%emt 0:00:02]} 51. h5 {[%emt 0:02:07]} Kf6 {[%emt 0:01:40]} 52. f4 {[%emt 0:00:05]} Kf5 {[%emt 0:00:42]} 53. Kh3 {[%emt 0:00:05]} Ke6 {[%emt 0:00:11]} 54. Kg4 {[%emt 0:00:05]} Kf6 {[%emt 0:00:07]} 55. Kf3 {[%emt 0:00:05]} Kf5 {[%emt 0:00:04]} 56. g4+ {[%emt 0:01:22]} Kf6 {[%emt 0:00:06]} 57. Ke4 {[%emt 0:00:27]} Ke6 {[%emt 0:00:14]} 58. Kd4 {[%emt 0:00:05]} Kd6 {[%emt 0:00:11]} 59. Kc4 {[%emt 0:00:28]} Kc6 {[%emt 0:00:20]} 60. g5 {[%emt 0:04:25]} Kd6 {[%emt 0:00:10]} 61. g6 {[%emt 0:00:07]} Ke6 {[%emt 0:01:51]} 62. Kc5 {[%emt 0:00:05]} Kd7 {[%emt 0:00:57]} 63. Kd5 {[%emt 0:00:11]} Ke7 {[%emt 0:01:13]} 64. Kc6 {[%emt 0:00:51]} Ke6 {[%emt 0:00:13]} 65. Kc7 {[%emt 0:00:18]} Ke7 {[%emt 0:00:19]} 66. f5 {[%emt 0:00:13]} Ke8 {[%emt 0:00:29]} 67. Kd6 {[%emt 0:00:03]} Kf8 {[%emt 0:00:09]} 68. Kd7 {[%emt 0:00:05]} Kg8 {[%emt 0:00:05]} 69. Ke7 {[%emt 0:00:10]} Kh8 {[%emt 0:00:03]} 70. f6 {[%emt 0:00:05]} 1-0

[Event "15th Chennai GM Open 2025"]
[Site "Chennai"]
[Date "2025.01.04"]
[Round "4.1"]
[White "Aronyak Ghosh"]
[Black "Kaustuv, Kundu"]
[Result "1/2-1/2"]
[ECO "E64"]
[WhiteElo "2544"]
[BlackElo "2409"]
[Annotator "TA"]
[PlyCount "78"]
[EventDate "2025.01.02"]
[EventType "swiss"]
[EventCountry "IND"]
[SourceTitle "playchess.com"]
[Source "ChessBase"]
[SourceQuality "1"]
[TimeControl "5400+30"]

{[%evp 12,78,28,0,0,0,10,2,14,7,37,30,33,40,41,25,41,47,47,41,43,46,43,41,60,48,59,52,54,34,46,39,50,33,55,31,60,57,62,63,66,62,60,64,78,70,49,52,64,60,81,68,92,0,0,0,0,0,0,0,0,0,0,0,0,0,0,0,0]} 1. d4 {[%emt 0:02:48]} Nf6 {[%emt 0:01:30]} 2. c4 {[%emt 0:00:48]} g6 {[%emt 0:01:33]} 3. g3 {[%emt 0:00:22]} Bg7 {[%emt 0:00:07]} 4. Bg2 {[%emt 0:00:09]} O-O {[%emt 0:00:08]} 5. Nc3 {[%emt 0:00:04]} d6 {[%emt 0:00:05]} 6. Nf3 {[%emt 0:00:13]} c5 {[%emt 0:00:08]} 7. h3 {[%emt 0:00:38]} Nc6 {[%emt 0:04:22]} 8. Be3 {[%emt 0:00:51]} cxd4 {[%emt 0:09:16]} 9. Nxd4 {[%emt 0:00:12]} Bd7 {[%emt 0:00:07]} 10. Qd2 {[%emt 0:00:10]} Nxd4 {[%emt 0:06:28]} 11. Bxd4 {[%emt 0:00:47]} Bc6 {[%emt 0:00:07]} 12. O-O {[%emt 0:04:14]} Bxg2 {[%emt 0:00:48]} 13. Kxg2 {[%emt 0:00:14]} a6 {[%emt 0:06:46]} 14. a4 {[%emt 0:06:11]} Rc8 {[%emt 0:01:08]} 15. b3 {[%emt 0:06:33]} Nd7 {[%emt 0:00:19]} 16. Bxg7 {[%emt 0:08:27]} Kxg7 {[%emt 0:00:07]} 17. Nd5 {[%emt 0:01:14]} Kg8 {[%emt 0:10:51]} 18. Rfd1 {[%emt 0:09:09]} Nb6 {[%emt 0:08:36]} 19. Ne3 {[%emt 0:02:56]} Nd7 {[%emt 0:00:55]} 20. Qd4 {[%emt 0:09:50]} Nf6 {[%emt 0:01:26]} 21. a5 {[%emt 0:00:48]} Qd7 {[%emt 0:06:30]} 22. f3 {[%emt 0:01:44]} Qe6 {[%emt 0:03:54]} 23. b4 {[%emt 0:06:33]} Rc7 {[%emt 0:04:41]} 24. Rac1 {[%emt 0:06:11]} Rfc8 {[%emt 0:00:49]} 25. Rd2 {[%emt 0:01:04]} Qd7 {[%emt 0:07:08]} 26. g4 {[%emt 0:01:27] White is more active.} Rc6 {[%emt 0:04:15]} 27. h4 {[%emt 0:03:47]} e5 {[%emt 0:05:08]} 28. Qb2 {[%emt 0:02:06]} Qe6 {[%emt 0:00:51]} 29. Rcd1 {[%emt 0:02:05]} b5 {[%emt 0:06:36]} 30. cxb5 {[%emt 0:04:17]} axb5 {[%emt 0:00:06]} 31. Qa2 {[%emt 0:00:19]} Rc3 {[%emt 0:09:32] [#]} 32. Nd5 {[%emt 0:04:55]} (32. Rxd6 $2 {too greedy.} Qxa2 33. R6d2 Qb3 $19) (32. Qxe6 $1 $16 fxe6 33. Rd3) 32... R3c4 $11 {[%emt 0:00:00]} 33. Nxf6+ {[%emt 0:03:43]} Qxf6 {[%emt 0:00:00]} 34. Rxd6 {[%emt 0:04:02]} Qxh4 {[%emt 0:00:00][%cal Oc4c2] ...Rc2! would now be deadly.} 35. Qd2 {[%emt 0:01:03]} Rxg4+ $1 {[%emt 0:00:00]} 36. fxg4 {[%emt 0:00:04]} Qxg4+ {[%emt 0:00:00]} 37. Kf2 {[%emt 0:00:04]} Qh4+ {[%emt 0:00:00]} 38. Kg2 {[%emt 0:00:12]} Qg4+ {[%emt 0:00:00]} 39. Kf2 {[%emt 0:00:03] and Qh6 would now be decisive} Qh4+ {[%emt 0:00:00]} 1/2-1/2

[Event "15th Chennai GM Open 2025"]
[Site "Chennai"]
[Date "2025.01.04"]
[Round "4.2"]
[White "Sathvik Adiga"]
[Black "Siddharth, Jagadeesh"]
[Result "*"]
[ECO "C54"]
[WhiteElo "2395"]
[BlackElo "2515"]
[Annotator "TA"]
[PlyCount "37"]
[EventDate "2025.01.02"]
[EventType "swiss"]
[EventCountry "IND"]
[SourceTitle "playchess.com"]
[Source "ChessBase"]
[SourceQuality "1"]
[TimeControl "5400+30"]

{[%evp 10,37,16,12,21,5,9,16,20,12,15,5,4,0,0,0,10,13,34,35,25,0,0,0,4,-12,1233,27,25,46]} 1. e4 {[%emt 0:00:02]} e5 {[%emt 0:00:58]} 2. Nf3 {[%emt 0:00:07]} Nc6 {[%emt 0:00:12]} 3. Bc4 {[%emt 0:00:06]} Bc5 {[%emt 0:00:05]} 4. c3 {[%emt 0:00:05]} Nf6 {[%emt 0:00:04]} 5. d3 {[%emt 0:00:04]} d6 {[%emt 0:00:04]} 6. O-O {[%emt 0:00:06]} a5 {[%emt 0:00:04]} 7. Re1 {[%emt 0:00:18]} O-O {[%emt 0:00:08]} 8. h3 {[%emt 0:00:02]} Be6 {[%emt 0:00:07] The position is equal.} 9. Bb5 {[%emt 0:00:04]} Ba7 {[%emt 0:00:08]} 10. Be3 {[%emt 0:00:05]} Bxe3 {[%emt 0:00:05]} 11. Rxe3 {[%emt 0:00:06]} Ne7 {[%emt 0:00:03]} 12. d4 {[%emt 0:00:56]} c6 {[%emt 0:00:06][%cal Bc7c6,Bc6c5][%mdl 32]} 13. Bf1 {[%emt 0:00:19]} h6 {[%emt 0:00:06]} 14. c4 {[%emt 0:11:05]} c5 {[%emt 0:00:18]} 15. dxe5 {[%emt 0:11:51]} dxe5 {[%emt 0:00:11]} 16. Nc3 {[%emt 0:05:28]} Nc6 {[%emt 0:00:06]} 17. Qxd8 {[%emt 0:01:24]} Re8 $2 {[%emt 0:03:06][%mdl 8192] [#]} (17... Rfxd8 $11 18. Nd5 a4) 18. Qe7 $2 Rxe7 $11 {[%emt 0:00:30]} 19. Nd5 {[%emt 0:02:55] Weighted Error Value: White=0.55/Black=0.06 (flawless) .  Loses game:     	---       	Black=1      Missed win:     	White=1     	---        OK:         	White=6     	Black=6      Best:        	---       	Black=1} *